[Event "American Cup Women Champions 2024"]
[Site "Saint Louis"]
[Date "2024.03.17"]
[Round "3.3"]
[White "Lee, Alice"]
[Black "Krush, Irina"]
[Result "0-1"]
[ECO "E11"]
[WhiteElo "2356"]
[BlackElo "2421"]
[Annotator "TA"]
[PlyCount "134"]
[EventDate "2024.03.11"]
[EventType "k.o."]
[EventCountry "USA"]
[SourceTitle "playchess.com"]
[Source "ChessBase"]
[SourceQuality "1"]
[TimeControl "5400+30"]

{[%evp 47,134,58,72,61,69,45,54,8,42,33,69,20,22,20,24,0,28,0,37,14,18,7,17,0,0,-37,-21,-31,-20,-66,-36,-73,-22,-70,-25,-127,-115,-156,-62,-64,-63,-74,-72,-66,-59,-81,-81,-79,-82,-69,-66,-84,-56,-46,-65,-194,-156,-203,-32,-252,-258,-264,-199,-186,-189,-200,-192,-391,-403,-400,-400,-748,-617,-2739,-1744,-29973,-29974,-29970,-29967,-29981,-29982,-29982,-29983,-29985,-29986,-29991,-29988,-29992,-29992]} 1. d4 {[%emt 0:00:03]} Nf6 {[%emt 0:00:13]} 2. c4 {[%emt 0:00:12]} e6 {[%emt 0:00:07]} 3. Nf3 {[%emt 0:00:06]} Bb4+ {[%emt 0:00:15]} 4. Bd2 {[%emt 0:00:08]} Qe7 {[%emt 0:00:13]} 5. g3 {[%emt 0:00:16]} Bxd2+ {[%emt 0:00:34]} 6. Qxd2 {[%emt 0:00:38]} Nc6 {[%emt 0:00:37]} 7. Qc2 {[%emt 0:04:42]} O-O {[%emt 0:06:18]} 8. Bg2 {[%emt 0:01:50]} d6 {[%emt 0:05:32]} 9. O-O {[%emt 0:10:52]} e5 {[%emt 0:00:23]} 10. d5 {[%emt 0:00:45]} Nb4 {[%emt 0:01:36]} 11. Qd2 {[%emt 0:05:07]} Na6 {[%emt 0:05:03]} 12. b4 {[%emt 0:03:37]} c6 {[%emt 0:14:45]} 13. dxc6 {[%emt 0:04:30]} bxc6 {[%emt 0:00:03]} 14. b5 {[%emt 0:05:56]} Nc5 {[%emt 0:16:58]} 15. bxc6 {[%emt 0:05:25]} Be6 {[%emt 0:00:07]} 16. Na3 {[%emt 0:02:23]} Nfe4 {[%emt 0:05:14]} 17. Qc2 {[%emt 0:03:17]} Rac8 {[%emt 0:00:33]} 18. Rfd1 {[%emt 0:17:54]} Rxc6 {[%emt 0:13:09]} 19. Nd4 {[%emt 0:03:52]} exd4 {[%emt 0:06:40]} 20. Bxe4 {[%emt 0:00:10]} d3 {[%emt 0:01:52]} 21. Bxd3 {[%emt 0:01:29]} Nxd3 {[%emt 0:00:02]} 22. Qxd3 {[%emt 0:01:50]} Rfc8 {[%emt 0:00:06]} 23. Qe3 {[%emt 0:01:52]} a6 {[%emt 0:01:57]} 24. Rd4 {[%emt 0:00:30]} h6 {[%emt 0:02:49]} 25. Rad1 {[%emt 0:02:02]} Qc7 {[%emt 0:04:04]} 26. Qd2 {[%emt 0:03:20]} Rd8 {[%emt 0:06:39]} 27. Rc1 {[%emt 0:02:57]} (27. Qd3 $14 {was preferrable.}) 27... Rc5 {[%emt 0:01:20]} 28. Rc3 {[%emt 0:04:31]} Ra5 {[%emt 0:02:55]} 29. Rcd3 {[%emt 0:02:32]} (29. Nc2 $14) 29... Ra4 $11 {[%emt 0:01:36]} 30. Qc2 {[%emt 0:00:29]} (30. Rxd6 $2 {loses.} Rxd6 31. Rxd6 Rxa3 32. Rd8+ Kh7 33. Qc2+ g6 $19) 30... Rb4 {[%emt 0:01:13]} 31. Qd2 {[%emt 0:04:53]} Ra4 {[%emt 0:00:15]} 32. Qc2 {[%emt 0:02:56]} (32. Rxd6 $2 {is the wrong capture.} Rxd6 33. Rxd6 Rxa3 34. Rd8+ Kh7 $19) 32... Rb4 {[%emt 0:00:05]} 33. Rb3 {[%emt 0:00:28]} Qc5 {[%emt 0:00:32]} 34. Rxb4 {[%emt 0:01:52]} Qxb4 {[%emt 0:00:30]} 35. Qc1 {[%emt 0:01:28]} Rc8 {[%emt 0:00:51]} 36. Rd3 {[%emt 0:02:42]} d5 {[%emt 0:00:59]} 37. Rb3 {[%emt 0:00:39]} Qc5 {[%emt 0:01:42]} 38. Nb1 {[%emt 0:00:16]} (38. Qe3 $11) 38... dxc4 {[%emt 0:00:17]} 39. Rc3 {[%emt 0:00:01]} Qd4 {[%emt 0:01:09]} (39... Qe5 $17 40. Qd2 Bf5) 40. Nd2 {[%emt 0:00:54]} (40. Qd2 $11 Qb6 41. Rc1) 40... Bd5 {[%emt 0:00:44]} 41. e4 {[%emt 0:00:59]} (41. Nf1 $11 {keeps the balance.}) 41... Be6 {[%emt 0:00:20]} 42. Qc2 {[%emt 0:00:27] [#]} Rd8 {[%emt 0:00:33]} (42... Bh3 $1 $17 {And now ...Rd8 would win.} 43. Nf3 Qd6) 43. Nf3 $15 {[%emt 0:00:37]} Qd7 {[%emt 0:00:28]} 44. h4 {[%emt 0:00:26]} Qc7 {[%emt 0:00:32]} 45. Kg2 {[%emt 0:00:15]} Rd6 {[%emt 0:00:07]} 46. Qe2 {[%emt 0:00:42]} Qd8 {[%emt 0:00:21]} 47. Ne5 {[%emt 0:00:32]} Rd2 {[%emt 0:00:56]} 48. Qe3 {[%emt 0:00:12]} Rxa2 {[%emt 0:00:23]} 49. Nxc4 {[%emt 0:00:05]} Ra1 {[%emt 0:00:36]} 50. Nd2 {[%emt 0:00:18]} a5 {[%emt 0:00:23]} 51. Rd3 {[%emt 0:00:46]} (51. Nb3 $15 Ra3 52. Nc5 Rxc3 53. Qxc3) 51... Qc7 {[%emt 0:00:29]} 52. Rc3 {[%emt 0:00:30]} (52. Nb3 $17 Ra3 53. Nd4 Rxd3 54. Qxd3) 52... Qb8 $2 {[%emt 0:00:27]} (52... Qd7 $19 {Strongly threatening ...a4.} 53. Rd3 Qb5) 53. Qd4 $2 {[%emt 0:01:03] [#]} (53. Nb3 $15 Ra3 54. Nc5 Rxc3 55. Qxc3) 53... Rd1 $1 $19 {[%emt 0:00:24]} 54. Rd3 {[%emt 0:00:23]} Qc7 {[%emt 0:01:00]} 55. Qb2 {[%emt 0:00:47]} a4 {[%emt 0:00:20]} 56. Rd4 {[%emt 0:00:32]} Qa5 {[%emt 0:00:42]} ({Inferior is} 56... Qa7 57. Rd8+ Kh7 58. Qc2 $11) 57. Nc4 $2 {[%emt 0:00:26]} (57. Qc2 {was forced.} Ra1 58. g4) 57... Qe1 $19 {[%emt 0:00:08]} 58. Rxd1 {[%emt 0:00:24]} Qxd1 {[%emt 0:00:01]} 59. Qb4 {[%emt 0:00:40]} (59. Ne5 $142) 59... Qd4 $19 {[%emt 0:00:58]} 60. Qb8+ {[%emt 0:00:02]} Kh7 {[%emt 0:00:05]} 61. Na3 {[%emt 0:00:31]} Qxe4+ {[%emt 0:00:14]} 62. Kh2 {[%emt 0:00:28]} Qf3 {[%emt 0:00:45]} 63. Qb1+ {[%emt 0:00:45]} Bf5 {[%emt 0:00:17]} 64. Qh1 {[%emt 0:00:42]} Qxa3 {[%emt 0:00:33]} 65. Qd5 {[%emt 0:00:05]} Qd3 {[%emt 0:00:44]} 66. Qxf7 {[%emt 0:00:10]} a3 {[%emt 0:00:09]} 67. h5 {[%emt 0:01:12]} Qc2 {[%emt 0:00:25]} 0-1

[Event "American Cup Women Champions 2024"]
[Site "Saint Louis"]
[Date "2024.03.19"]
[Round "4.1"]
[White "Krush, Irina"]
[Black "Lee, Alice"]
[Result "1/2-1/2"]
[ECO "E24"]
[WhiteElo "2421"]
[BlackElo "2356"]
[Annotator "TA"]
[PlyCount "46"]
[EventDate "2024.03.11"]
[EventType "k.o."]
[EventCountry "USA"]
[SourceTitle "playchess.com"]
[Source "ChessBase"]
[SourceQuality "1"]
[TimeControl "5400+30"]

{[%evp 16,46,0,0,0,0,0,0,0,0,0,0,6,12,5,13,38,27,110,88,81,81,81,68,85,106,72,0,38,0,66,0,31]} 1. c4 {[%emt 0:00:04]} e6 {[%emt 0:00:06]} 2. Nc3 {[%emt 0:00:18]} d5 {[%emt 0:00:07]} 3. d4 {[%emt 0:00:15]} Nf6 {[%emt 0:00:08]} 4. cxd5 {[%emt 0:00:31]} exd5 {[%emt 0:00:09]} 5. Bg5 {[%emt 0:00:27]} Bb4 {[%emt 0:00:09]} 6. e3 {[%emt 0:03:47]} h6 {[%emt 0:00:10]} 7. Bxf6 {[%emt 0:04:11]} Qxf6 {[%emt 0:00:11]} 8. a3 {[%emt 0:00:16]} Bxc3+ {[%emt 0:01:33]} 9. bxc3 {[%emt 0:00:03]} O-O {[%emt 0:01:51]} 10. Bd3 {[%emt 0:03:41]} Bf5 {[%emt 0:13:50]} 11. Ne2 {[%emt 0:00:47]} Nd7 {[%emt 0:02:26][%cal Bb8d7,Bd7b6,Bb6c4,Bc4e3][%mdl 32]} 12. O-O {[%emt 0:05:13]} Nb6 {[%emt 0:05:19]} 13. f3 {[%emt 0:14:23][%cal Bf2f3,Bf3e4][%mdl 32]} Qe6 {[%emt 0:08:47]} 14. Bxf5 {[%emt 0:00:53]} Qxf5 {[%emt 0:00:07] [#]} 15. e4 $1 {[%emt 0:00:13]} dxe4 {[%emt 0:00:36]} (15... Qd7 16. Qd3) 16. Ng3 {[%emt 0:00:10][%csl LRe4,LRf5]} Qg5 {[%emt 0:06:57]} (16... Qe6 $11 {keeps the balance.}) 17. fxe4 $16 {[%emt 0:01:02]} Nc4 {[%emt 0:00:38]} 18. Rf3 {[%emt 0:15:00] Strongly threatening Nf5.} Qd2 {[%emt 0:06:52]} 19. Qb3 {[%emt 0:02:42]} Ne3 {[%emt 0:01:40]} 20. Rf2 {[%emt 0:02:52]} Qd3 {[%emt 0:00:08][%cal Oc7c5]} 21. Rf3 {[%emt 0:15:33][%cal Ob3a2] [#] Threatens to win with Qa2!} Qd2 {[%emt 0:01:29]} 22. Rf2 {[%emt 0:00:08]} Qd3 {[%emt 0:00:05][%cal Oc7c5]} 23. Rf3 {[%emt 0:00:51][%cal Ob3a2] Hoping for Qa2!} Qd2 {[%emt 0:03:51] Weighted Error Value: White=0.17 (very precise) /Black=0.15 (very precise) .  Mistake:       	---       	Black=1      Inaccurate:     	White=2     	---        OK:         	White=9     	Black=6      Best:        	White=2     	Black=2} 1/2-1/2

[Event "American Cup Women Champions 2024"]
[Site "Saint Louis"]
[Date "2024.03.19"]
[Round "4.2"]
[White "Lee, Alice"]
[Black "Krush, Irina"]
[Result "1-0"]
[ECO "E11"]
[WhiteElo "2356"]
[BlackElo "2421"]
[Annotator "TA"]
[PlyCount "115"]
[EventDate "2024.03.11"]
[EventType "k.o."]
[EventCountry "USA"]
[SourceTitle "playchess.com"]
[Source "ChessBase"]
[SourceQuality "1"]
[TimeControl "900+10"]

{[%evp 12,115,24,29,37,23,30,22,20,12,39,27,52,47,43,53,48,51,46,37,45,31,47,42,46,33,29,15,11,7,22,0,0,0,0,7,2,0,8,2,42,32,39,47,34,36,41,17,20,14,14,8,17,15,23,0,31,10,10,11,122,135,168,195,289,91,327,0,510,510,29970,29972,5389,1129,790,693,29963,29965,29975,29976,29976,29975,29973,0,29975,29976,29973,29972,29972,29971,29971,0,29972,29973,29973,29972,29972,29970,29969,5097,29981,29981,29997,29998,29998,29999]} 1. d4 {[%emt 0:00:05]} Nf6 {[%emt 0:00:03]} 2. c4 {[%emt 0:00:02]} e6 {[%emt 0:00:02]} 3. Nf3 {[%emt 0:00:02]} Bb4+ {[%emt 0:00:03]} 4. Bd2 {[%emt 0:00:02]} Qe7 {[%emt 0:00:05]} 5. g3 {[%emt 0:00:02]} Bxd2+ {[%emt 0:00:04]} 6. Qxd2 {[%emt 0:00:04]} Nc6 {[%emt 0:00:04]} 7. a3 {[%emt 0:00:02]} d5 {[%emt 0:01:01]} 8. Bg2 {[%emt 0:00:10]} O-O {[%emt 0:00:04]} 9. Qc3 {[%emt 0:00:02]} Ne4 {[%emt 0:02:14] Against Nbd2. The position is equal.} 10. Qc1 {[%emt 0:02:21]} Na5 {[%emt 0:01:14]} 11. Nbd2 {[%emt 0:00:16] Repels Nb3} Nxd2 {[%emt 0:04:17]} 12. Nxd2 {[%emt 0:00:03]} Nxc4 {[%emt 0:00:04]} 13. Nxc4 {[%emt 0:00:03]} dxc4 {[%emt 0:00:02]} 14. Qxc4 {[%emt 0:00:14]} c6 {[%emt 0:00:28]} 15. Qc3 {[%emt 0:02:34]} Re8 {[%emt 0:00:33]} 16. Rd1 {[%emt 0:00:38]} Bd7 {[%emt 0:01:14][%cal Bc8d7,Bd7e8,Be8f7][%mdl 32]} 17. O-O {[%emt 0:01:48]} h6 {[%emt 0:00:02]} 18. h4 {[%emt 0:01:18]} Red8 {[%emt 0:00:14]} 19. h5 {[%emt 0:00:37]} Be8 {[%emt 0:00:19]} 20. Bf3 {[%emt 0:00:29]} Rd6 {[%emt 0:00:26]} 21. Rd3 {[%emt 0:01:33]} Rad8 {[%emt 0:00:04]} 22. Kg2 {[%emt 0:00:44]} f6 {[%emt 0:00:14]} 23. Rfd1 {[%emt 0:01:24]} Bf7 {[%emt 0:00:17]} 24. Qa5 {[%emt 0:00:23]} b6 {[%emt 0:01:05]} 25. Qc3 {[%emt 0:00:43]} c5 {[%emt 0:00:24]} 26. dxc5 {[%emt 0:00:32]} Rxd3 {[%emt 0:00:03]} 27. Rxd3 {[%emt 0:00:02]} Rxd3 {[%emt 0:00:03]} 28. Qxd3 {[%emt 0:00:14]} bxc5 $14 {[%emt 0:02:20][%mdl 4096] Endgame. KQB-KQB} 29. e3 {[%emt 0:01:31]} Qc7 {[%emt 0:00:04]} 30. Qc4 {[%emt 0:00:41]} Qe5 {[%emt 0:00:36]} 31. b3 {[%emt 0:00:53]} Kh8 {[%emt 0:00:20]} 32. Qa6 {[%emt 0:00:19]} Qc7 {[%emt 0:00:14]} 33. Qc4 {[%emt 0:00:17] aiming for b4.} Qe7 {[%emt 0:00:44]} 34. b4 {[%emt 0:00:13]} cxb4 {[%emt 0:00:03]} 35. axb4 {[%emt 0:00:02]} e5 {[%emt 0:01:20] [#]} (35... Qd7 $11) 36. Qc8+ $1 $16 {[%emt 0:00:01] White now steadily converts the win.} Qe8 {[%emt 0:00:01] [#]} 37. Qb7 {[%emt 0:00:40]} Bxh5 {[%emt 0:00:29]} (37... e4 $142 38. Bxe4 Bxh5) 38. Bc6 $2 {[%emt 0:00:07]} (38. Qxa7 Bxf3+ 39. Kxf3 Qc6+ 40. e4 Qc3+ 41. Kg2 Qxb4 $15) (38. Bxh5 $18 {and the rest is easy.} Qxh5 39. Qxa7) 38... Qf8 {[%emt 0:00:16]} (38... Qf7 $16) 39. b5 $2 {[%emt 0:00:02]} (39. Qxa7 $18 {Hoping for b5.} Qxb4 40. Qa8+ Kh7 41. Bd5 Bf3+ 42. Kxf3 (42. Bxf3 Qe7 $18)) 39... f5 $2 {[%emt 0:00:17][%mdl 8192]} (39... Qf7 $11 40. Qa8+ Kh7) 40. Qxa7 $18 {[%emt 0:00:05] Black must now prevent b6.} Qb4 {[%emt 0:00:11]} (40... Kh7 $18 41. Qd7 Be2) 41. Qb8+ {[%emt 0:00:04]} Kh7 {[%emt 0:00:02]} 42. Qxe5 {[%emt 0:00:02]} (42. Bd5 $142 e4 43. Qg8+ Kg6 44. Bf7+ Kf6 45. Bxh5) 42... Bg4 {[%emt 0:00:17]} 43. Bd7 {[%emt 0:00:22]} Qb1 {[%emt 0:00:04] [#]} 44. e4 $1 {[%emt 0:00:25][%mdl 512]} g6 {[%emt 0:00:17]} (44... Bh3+ 45. Kh2) 45. Qe7+ {[%emt 0:00:08]} Kh8 {[%emt 0:00:02]} 46. Qf6+ {[%emt 0:00:03]} Kh7 {[%emt 0:00:01]} 47. Qe7+ {[%emt 0:00:12]} Kh8 {[%emt 0:00:01][%cal Ob1d1]} 48. exf5 {[%emt 0:00:09]} Bxf5 {[%emt 0:00:21]} 49. Qf8+ {[%emt 0:00:10]} Kh7 {[%emt 0:00:01]} 50. Qf7+ {[%emt 0:00:02]} Kh8 {[%emt 0:00:02]} 51. Qf8+ {[%emt 0:00:14]} Kh7 {[%emt 0:00:01]} 52. Bxf5 {[%emt 0:00:01]} gxf5 {[%emt 0:00:01] KQ-KQ} 53. Qf7+ {[%emt 0:00:01]} Kh8 {[%emt 0:00:01]} 54. Qe8+ {[%emt 0:00:01]} Kg7 {[%emt 0:00:14]} 55. Qd7+ {[%emt 0:00:02]} (55. Qe7+ $142 Kh8 56. Qf6+ Kg8 57. b6 (57. Qxh6 Qxb5 58. Qg6+ Kf8 $14) 57... Qe4+ 58. Kh2 f4 59. Qxf4 Qb7 60. Qc7 (60. Qxh6 Qd5 $18)) 55... Kg6 {[%emt 0:00:48]} 56. Qc6+ {[%emt 0:00:01] White mates.} Kg5 {[%emt 0:00:09]} 57. f4+ {[%emt 0:00:05]} Kh5 {[%emt 0:00:01]} 58. Qe8+ {[%emt 0:00:01] Weighted Error Value: White=0.45/Black=0.70.  Loses game:     	---       	Black=2      Missed win:     	White=2     	---        Mistake:       	---       	Black=3      Inaccurate:     	---       	Black=3      OK:         	White=9     	Black=17     Best:        	White=2     	---        Strong:       	White=1     	---} 1-0

[Event "American Cup Women Champions 2024"]
[Site "Saint Louis"]
[Date "2024.03.20"]
[Round "4.3"]
[White "Lee, Alice"]
[Black "Krush, Irina"]
[Result "1-0"]
[ECO "A56"]
[WhiteElo "2356"]
[BlackElo "2421"]
[Annotator "RC"]
[PlyCount "127"]
[EventDate "2024.03.11"]
[EventType "k.o."]
[EventCountry "USA"]
[SourceTitle "playchess.com"]
[Source "ChessBase"]
[SourceQuality "1"]
[TimeControl "900+10"]

1. d4 {[%emt 0:00:00]} Nf6 {[%emt 0:00:00]} 2. c4 {[%emt 0:00:00]} c5 {[%emt 0:00:00]} 3. d5 {[%emt 0:00:00]} e5 {[%emt 0:00:00]} 4. Nc3 {[%emt 0:00:00]} d6 {[%emt 0:00:00]} 5. e4 {[%emt 0:00:00]} Nbd7 {[%emt 0:00:00]} 6. Nge2 {[%emt 0:00:00]} g6 {[%emt 0:00:00]} 7. Ng3 {[%emt 0:00:00]} h5 {[%emt 0:00:00]} 8. Bd3 {[%emt 0:00:00]} h4 {[%emt 0:00:00]} 9. Nge2 {[%emt 0:00:00]} Bh6 {[%emt 0:00:00]} 10. Bxh6 {[%emt 0:00:00]} Rxh6 {[%emt 0:00:00]} 11. Qd2 {[%emt 0:00:00]} Rh8 {[%emt 0:00:00]} 12. a3 {[%emt 0:00:00]} Kf8 {[%emt 0:00:00]} 13. O-O-O {[%emt 0:00:00]} Kg7 {[%emt 0:00:00]} 14. g3 {[%emt 0:00:00]} a6 {[%emt 0:00:00]} 15. f4 {[%emt 0:00:00]} Ng4 {[%emt 0:00:00]} 16. Rdf1 {[%emt 0:00:00]} hxg3 {[%emt 0:00:00]} 17. hxg3 {[%emt 0:00:00]} Ndf6 {[%emt 0:00:00]} 18. Kb1 {[%emt 0:00:00]} Bd7 {[%emt 0:00:00]} 19. f5 {[%emt 0:00:00]} Rb8 {[%emt 0:00:00]} 20. a4 {[%emt 0:00:00]} Nh2 {[%emt 0:00:00]} 21. Rd1 {[%emt 0:00:00]} Nf3 {[%emt 0:00:00]} 22. Qc1 {[%emt 0:00:00]} Ng4 {[%emt 0:00:00]} 23. Rxh8 {[%emt 0:00:00]} Qxh8 {[%emt 0:00:00]} 24. Rh1 {[%emt 0:00:00]} Qd8 {[%emt 0:00:00]} 25. Ng1 {[%emt 0:00:00]} Nxg1 {[%emt 0:03:19]} 26. Rxg1 {[%emt 0:00:00]} Qf6 {[%emt 0:01:50]} 27. Rf1 {[%emt 0:00:00]} Rh8 {[%emt 0:00:20]} 28. Be2 {[%emt 0:00:00]} Nh6 {[%emt 0:02:09]} 29. g4 {[%emt 0:00:00]} g5 {[%emt 0:01:10]} 30. Bd1 {[%emt 0:00:56]} Ng8 {[%emt 0:04:46]} 31. Qe3 {[%emt 0:05:09]} Qh6 {[%emt 0:00:44]} 32. Ne2 {[%emt 0:00:12]} b5 {[%emt 0:05:31]} 33. Ng3 {[%emt 0:01:52]} f6 {[%emt 0:00:10]} 34. axb5 {[%emt 0:04:17]} axb5 {[%emt 0:00:06]} 35. Qa3 {[%emt 0:00:00]} Kf7 {[%emt 0:00:24]} 36. Qa7 {[%emt 0:00:42]} Ke7 {[%emt 0:00:00]} 37. Rh1 {[%emt 0:01:04]} Qxh1 {[%emt 0:00:17]} 38. Nxh1 {[%emt 0:00:00]} Rxh1 {[%emt 0:00:00]} 39. cxb5 {[%emt 0:03:22]} Rxd1+ {[%emt 0:00:00]} 40. Ka2 {[%emt 0:00:00]} Rd4 {[%emt 0:00:00]} 41. b6 {[%emt 0:00:00]} Rxe4 {[%emt 0:00:00]} 42. b7 {[%emt 0:00:00]} Rb4 {[%emt 0:00:00]} 43. b8=Q {[%emt 0:00:00]} Rxb8 {[%emt 0:00:00]} 44. Qxb8 {[%emt 0:00:00]} Nh6 {[%emt 0:00:00]} 45. b4 {[%emt 0:00:00]} cxb4 {[%emt 0:01:09]} 46. Qxb4 {[%emt 0:00:00]} Nf7 {[%emt 0:00:23]} 47. Kb3 {[%emt 0:00:00]} Be8 {[%emt 0:00:00]} 48. Qb8 {[%emt 0:00:25]} Bd7 {[%emt 0:00:00]} 49. Qc7 {[%emt 0:00:27]} Ke8 {[%emt 0:00:14]} 50. Kb4 {[%emt 0:00:03]} Ke7 {[%emt 0:00:00]} 51. Ka5 {[%emt 0:00:00]} Ke8 {[%emt 0:00:13]} 52. Kb6 {[%emt 0:00:15]} Ke7 {[%emt 0:00:12]} 53. Qc4 {[%emt 0:00:27]} Be8 {[%emt 0:00:05]} 54. Kc7 {[%emt 0:00:00]} Bd7 {[%emt 0:00:00]} 55. Qb4 {[%emt 0:00:48]} Be8 {[%emt 0:00:00]} 56. Qb7 {[%emt 0:00:00]} Bd7 {[%emt 0:00:00]} 57. Qb8 {[%emt 0:00:00]} e4 {[%emt 0:00:09]} 58. Qb4 {[%emt 0:00:00]} Be8 {[%emt 0:00:00]} 59. Qxe4+ {[%emt 0:00:00]} Ne5 {[%emt 0:00:00]} 60. Qb4 {[%emt 0:00:00]} Nf7 {[%emt 0:00:00]} 61. Qb8 {[%emt 0:00:00]} Bd7 {[%emt 0:01:19]} 62. Qa8 {[%emt 0:00:07]} Ne5 {[%emt 0:00:28]} 63. Qd8+ {[%emt 0:00:00]} Kf7 {[%emt 0:00:00]} 64. Qxd7+ {[%emt 0:00:00]} 1-0

[Event "American Cup Women Champions 2024"]
[Site "Saint Louis"]
[Date "2024.03.21"]
[Round "5.1"]
[White "Krush, Irina"]
[Black "Lee, Alice"]
[Result "1-0"]
[ECO "D60"]
[WhiteElo "2421"]
[BlackElo "2356"]
[Annotator "TA"]
[PlyCount "69"]
[EventDate "2024.03.11"]
[EventType "k.o."]
[EventCountry "USA"]
[SourceTitle "playchess.com"]
[Source "ChessBase"]
[SourceQuality "1"]
[TimeControl "900+10"]

{[%evp 22,69,19,14,20,20,26,32,54,44,83,75,63,86,80,68,98,85,127,121,131,143,166,127,183,191,214,219,196,195,276,257,289,246,374,378,392,386,378,383,391,376,612,614,632,628,607,592,29984,29985]} 1. c4 {[%emt 0:00:02]} e6 {[%emt 0:00:01]} 2. Nc3 {[%emt 0:00:03]} d5 {[%emt 0:00:02]} 3. d4 {[%emt 0:00:02]} Nf6 {[%emt 0:00:02]} 4. Bg5 {[%emt 0:00:04]} Be7 {[%emt 0:00:03]} 5. e3 {[%emt 0:00:04]} h6 {[%emt 0:00:08]} 6. Bh4 {[%emt 0:00:06]} O-O {[%emt 0:00:14]} 7. Nf3 {[%emt 0:00:03]} Nbd7 {[%emt 0:00:09][%cal Bb8d7,Bd7e5,Be5c6][%mdl 32]} 8. Bd3 {[%emt 0:00:50]} dxc4 {[%emt 0:01:02]} 9. Bxc4 {[%emt 0:00:02]} a6 {[%emt 0:00:16]} 10. a4 {[%emt 0:00:10]} c5 {[%emt 0:00:47]} 11. O-O {[%emt 0:00:04]} cxd4 {[%emt 0:01:52]} 12. Nxd4 {[%emt 0:00:02]} Ne5 {[%emt 0:00:17]} 13. Be2 {[%emt 0:00:22]} Nd5 {[%emt 0:01:19] [#] aiming for ...Nxc3.} 14. Bxe7 {[%emt 0:01:20]} Nxe7 {[%emt 0:00:02] White is slightly better.} 15. Qb3 {[%emt 0:01:04]} Qa5 {[%emt 0:01:25]} 16. Rfd1 {[%emt 0:01:43]} N7c6 {[%emt 0:01:34]} 17. Nxc6 {[%emt 0:02:16]} Nxc6 {[%emt 0:00:04]} 18. Ne4 {[%emt 0:00:06]} Qc7 {[%emt 0:03:00]} 19. Rac1 {[%emt 0:01:22]} Qe7 {[%emt 0:00:12]} 20. Qb6 {[%emt 0:01:06] White is much more active. The black rooks are passive.} e5 {[%emt 0:00:40]} 21. Nc5 {[%emt 0:00:44]} Rd8 {[%emt 0:01:21]} 22. Nxa6 {[%emt 0:00:55]} bxa6 {[%emt 0:01:01]} (22... Rxd1+ $16 {is a better defense.} 23. Rxd1 Qf6) 23. Qxc6 $18 {[%emt 0:00:40]} Bb7 {[%emt 0:01:09] [#]} 24. Qb6 $1 {[%emt 0:00:03]} Bd5 {[%emt 0:00:37]} 25. Qa5 {[%emt 0:04:23]} ({Don't play} 25. Bxa6 $6 Rdb8 26. Qc5 Qxc5 27. Rxc5 Bb3 $16) 25... Bb3 {[%emt 0:01:09]} (25... Bb7 $142 26. h3 Rxd1+ 27. Rxd1 Qe6) 26. Rxd8+ {[%emt 0:00:16]} Rxd8 {[%emt 0:00:02]} 27. Qxa6 {[%emt 0:00:55] Threatens to win with Qb5.} Rd2 {[%emt 0:00:37]} (27... Qb4 {was necessary.} 28. a5 Rd2 29. Qa8+ Kh7) 28. Bd3 {[%emt 0:00:27] Rc8+ would kill now.} e4 {[%emt 0:00:09]} 29. Qa8+ {[%emt 0:00:09]} Kh7 {[%emt 0:00:02]} 30. Qxe4+ {[%emt 0:00:14]} (30. Bxe4+ g6 31. Qc6 Be6) 30... Qxe4 {[%emt 0:00:02]} 31. Bxe4+ {[%emt 0:00:02]} g6 $2 {[%emt 0:00:01]} (31... f5 32. Bxf5+ g6) 32. a5 {[%emt 0:00:12][%cal Ba4a5,Ba5a6,Ba6a7][%mdl 32]} Rxb2 {[%emt 0:00:05]} 33. Ra1 {[%emt 0:00:01]} Bc4 {[%emt 0:00:12]} 34. a6 {[%emt 0:00:20]} f5 {[%emt 0:00:52]} 35. a7 {[%emt 0:00:02] Black got outplayed after the opening.   Weighted Error Value: White=0.05 (flawless) /Black=0.63.  Mistake:       	---       	Black=4      Inaccurate:     	---       	Black=3      OK:         	White=13    	Black=2      Best:        	White=3     	Black=2} 1-0

[Event "American Cup Women Champions 2024"]
[Site "Saint Louis"]
[Date "2024.03.21"]
[Round "5.2"]
[White "Lee, Alice"]
[Black "Krush, Irina"]
[Result "1-0"]
[ECO "E11"]
[WhiteElo "2356"]
[BlackElo "2421"]
[Annotator "RC"]
[PlyCount "77"]
[EventDate "2024.03.11"]
[EventType "k.o."]
[EventCountry "USA"]
[SourceTitle "playchess.com"]
[Source "ChessBase"]
[SourceQuality "1"]
[TimeControl "900+10"]

1. d4 {[%emt 0:00:02]} Nf6 {[%emt 0:00:02]} 2. c4 {[%emt 0:00:01]} e6 {[%emt 0:00:02]} 3. Nf3 {[%emt 0:00:02]} Bb4+ {[%emt 0:00:03]} 4. Bd2 {[%emt 0:00:01]} a5 {[%emt 0:00:03]} 5. a3 {[%emt 0:00:05]} Bxd2+ {[%emt 0:00:06]} 6. Qxd2 {[%emt 0:00:02]} d5 {[%emt 0:00:14]} 7. Nc3 {[%emt 0:00:02]} O-O {[%emt 0:00:04]} 8. e3 {[%emt 0:00:02]} Nbd7 {[%emt 0:00:08]} 9. cxd5 {[%emt 0:00:31]} exd5 {[%emt 0:00:03]} 10. Bd3 {[%emt 0:00:02]} Qe7 {[%emt 0:00:48]} 11. O-O {[%emt 0:00:08]} b6 {[%emt 0:00:01]} 12. Rac1 {[%emt 0:00:24]} Bb7 {[%emt 0:00:04]} 13. Ne2 {[%emt 0:00:49]} c5 {[%emt 0:00:47]} 14. Ng3 {[%emt 0:00:13]} c4 {[%emt 0:04:07]} 15. Nf5 {[%emt 0:00:53]} Qd8 {[%emt 0:00:03]} 16. Bb1 {[%emt 0:00:21]} g6 {[%emt 0:02:41]} 17. Ng3 {[%emt 0:00:35]} b5 {[%emt 0:01:28]} 18. Ne5 {[%emt 0:00:47]} Qe7 {[%emt 0:00:14]} 19. f4 {[%emt 0:00:11]} b4 {[%emt 0:00:27]} 20. axb4 {[%emt 0:02:52]} axb4 {[%emt 0:00:01]} 21. e4 {[%emt 0:00:07]} dxe4 {[%emt 0:01:32]} 22. Rfe1 {[%emt 0:00:13]} c3 {[%emt 0:02:54]} 23. bxc3 {[%emt 0:00:08]} bxc3 {[%emt 0:00:02]} 24. Qxc3 {[%emt 0:00:46]} Nd5 {[%emt 0:00:14]} 25. Qb2 {[%emt 0:00:40]} Rab8 {[%emt 0:01:00]} 26. Nxe4 {[%emt 0:00:48]} Ba8 {[%emt 0:01:19]} 27. Qf2 {[%emt 0:00:14]} Rfc8 {[%emt 0:00:12]} 28. Rxc8+ {[%emt 0:01:58]} Rxc8 {[%emt 0:00:01]} 29. Ba2 {[%emt 0:00:09]} N7b6 {[%emt 0:01:08]} 30. f5 {[%emt 0:00:10]} f6 {[%emt 0:00:09]} 31. Ng4 {[%emt 0:00:30]} Kg7 {[%emt 0:00:10]} 32. Nexf6 {[%emt 0:01:42]} Qf7 {[%emt 0:00:01]} 33. Qh4 {[%emt 0:00:12]} Kh8 {[%emt 0:00:21]} 34. fxg6 {[%emt 0:00:33]} Qxg6 {[%emt 0:00:01]} 35. Bb1 {[%emt 0:00:05]} Qg7 {[%emt 0:00:15]} 36. Bxh7 {[%emt 0:00:07]} Nxf6 {[%emt 0:00:10]} 37. Bf5+ {[%emt 0:00:50]} Nh7 {[%emt 0:00:02]} 38. Bxc8 {[%emt 0:00:10]} Qxd4+ {[%emt 0:00:09]} 39. Qf2 {[%emt 0:00:12]} 1-0